bitfinex/quotes_ETHUSD_20240811
["timestamp","ask_amount","ask_price","bid_price","bid_amount"]
[1723371321840,2.5978,2694.6,2694.1,0.55]
[1723371322148,2.4481,2694.5,2694.0,2.5983]
[1723371322654,2.4481,2694.5,2694.1,2.59827]
[1723371323953,5.04603,2694.5,2693.9,2.59845]
[1723371324112,2.95268,2694.5,2694.0,2.5983]
[1723371324312,2.4481,2694.5,2694.2,2.5981]
[1723371324649,2.3055,2695.4,2694.8,2.59756]
[1723371324946,2.3055,2695.9,2695.3,2.59711]
[1723371325137,2.3055,2695.9,2695.0,2.59735]
[1723371325138,2.59663,2695.8,2695.0,2.59735]
[1723371325335,2.59682,2695.6,2694.8,2.59753]
[1723371325550,2.59682,2695.6,2694.8,2.59752]
[1723371325551,2.59708,2695.4,2694.8,2.59752]
[1723371325747,2.3055,2695.5,2694.9,2.59743]
[1723371325953,4.90243,2695.5,2694.9,2.857173]
[1723371326122,2.59704,2695.4,2694.6,2.59771]
[1723371326322,2.59727,2695.2,2694.4,2.59791]
[1723371326522,2.5975,2694.9,2694.4,2.59791]
[1723371326748,2.5975,2694.9,2694.3,2.598]
[1723371326960,2.5975,2694.9,2694.2,2.59813]
[1723371326961,2.5976,2694.8,2694.2,2.59813]
[1723371327127,2.3055,2694.7,2694.2,2.59813]
[1723371327868,2.3055,2694.7,2694.2,2.59811]
[1723371328053,3.055578,2694.7,2694.2,2.59811]
[1723371328254,2.3055,2694.7,2694.2,2.59811]
[1723371329266,2.59779,2694.6,2694.0,2.59832]
[1723371329839,2.59837,2694.0,2693.2,0.5815547]
[1723371330136,3.0,2694.5,2693.0,2.401]
[1723371330137,2.59862,2693.8,2693.0,5.00029]
[1723371330453,3.259779,2694.5,2692.8,6.25263161]
[1723371330763,2.3055,2694.4,2694.0,2.59834]
[1723371331075,2.3055,2694.4,2693.8,2.59849]
[1723371331076,2.3055,2694.4,2693.8,2.5985]
[1723371331383,2.3055,2695.0,2694.2,2.59814]
[1723371331594,2.3055,2695.7,2694.8,2.59759]
[1723371331878,2.3055,2695.7,2694.4,4.99893]
[1723371331879,2.3055,2695.7,2695.2,2.59714]
[1723371332232,2.3055,2695.7,2695.4,2.59694]
[1723371332432,2.3055,2695.7,2695.2,2.59715]
[1723371333347,2.53605,2695.7,2695.0,2.59733]
[1723371333954,2.53605,2695.7,2695.2,2.59719]
[1723371334354,2.3055,2695.7,2695.4,2.59695]
[1723371334554,2.3055,2696.1,2695.6,2.59682]
[1723371334866,5.161548,2696.1,2695.4,2.59695]
[1723371335243,5.161548,2696.1,2695.4,2.59694]
[1723371335444,5.161468,2696.1,2695.5,2.59685]
[1723371335647,0.7757828,2696.0,2695.4,2.59694]
[1723371335844,0.7757828,2696.0,2695.4,5.19389]
[1723371336044,0.7757828,2696.0,2695.4,2.59694]
[1723371336385,2.59682,2695.7,2695.0,2.59734]
[1723371336583,2.59628,2696.2,2694.4,2.59797]
[1723371336584,2.3055,2695.1,2694.4,2.59797]
[1723371336883,2.3055,2695.1,2694.5,2.59787]
[1723371337085,2.3055,2695.1,2694.5,2.59782]
[1723371337443,2.3055,2695.1,2694.7,2.59762]
[1723371337776,2.3055,2695.1,2694.7,2.59765]
[1723371338276,2.3055,2695.1,2694.5,2.59782]
[1723371338810,2.3055,2695.1,2694.5,5.19563]
[1723371338951,2.3055,2695.1,2694.6,2.59777]
[1723371339155,2.3055,2695.1,2694.7,2.59766]
[1723371339886,2.3055,2695.1,2694.5,5.19566]
[1723371340100,2.3055,2695.1,2694.5,0.83388654]
[1723371340298,2.3055,2695.4,2694.8,2.59757]
[1723371340661,2.3055,2695.4,2694.8,2.59752]
[1723371340888,4.90252,2695.4,2694.8,2.59752]
[1723371341055,4.90252,2695.4,2694.9,2.59743]
[1723371341056,2.3055,2695.4,2694.9,2.59743]
[1723371341261,2.3055,2695.4,2695.0,2.59731]
[1723371342394,2.3055,2695.8,2695.3,2.59702]
[1723371342619,2.3055,2695.8,2695.4,2.597]
[1723371342756,2.3055,2695.8,2695.3,2.59702]
[1723371342757,2.3055,2695.8,2695.3,5.19406]
[1723371342963,2.3055,2695.8,2695.3,2.59702]
[1723371343159,2.3055,2695.8,2695.0,0.07420209]
[1723371343160,2.3055,2695.8,2695.5,2.59686]
[1723371343395,2.3055,2695.8,2695.7,2.59672]
[1723371343602,2.3285,2696.1,2695.2,0.07419824]
[1723371343900,2.3285,2696.1,2695.8,2.59655]
[1723371344806,2.3285,2696.1,2695.9,2.59645]
[1723371344985,2.3285,2696.1,2695.8,2.59655]
[1723371345163,2.3285,2696.1,2695.4,2.59697]
[1723371345164,2.5965,2696.0,2695.4,2.59697]
[1723371345810,2.3285,2696.1,2694.8,5.401]
[1723371345964,2.3285,2696.4,2695.7,2.59672]
[1723371346161,2.3285,2696.4,2695.9,2.59647]
[1723371346395,2.3285,2696.4,2696.0,2.59643]
[1723371346898,4.92461,2696.4,2695.8,2.59661]
[1723371347078,0.23285,2696.3,2695.8,2.59661]
[1723371348100,0.23285,2696.3,2695.9,2.59653]
[1723371348574,2.3285,2696.4,2696.1,2.59633]
[1723371348775,2.3285,2696.4,2695.7,2.59666]
[1723371349087,2.3285,2695.9,2695.3,2.59704]
[1723371349273,0.492501,2695.8,2695.3,5.19408]
[1723371349474,0.492501,2695.8,2695.4,2.59701]
[1723371350191,0.492501,2695.8,2695.5,2.5969]
[1723371350369,2.3285,2695.9,2695.5,2.5969]
[1723371350802,2.3285,2695.9,2695.3,2.59704]
[1723371350803,4.92505,2695.9,2695.3,2.59704]
[1723371351119,4.92505,2695.9,2694.9,3.14746]
[1723371351120,2.59673,2695.7,2695.2,2.5972]
[1723371351264,2.3285,2695.9,2695.4,2.59701]
[1723371351610,2.3285,2695.9,2695.0,2.59734]
[1723371351773,2.3285,2695.6,2695.0,2.59733]
[1723371352300,2.3285,2695.6,2695.1,2.59724]
[1723371352812,2.3285,2695.9,2695.5,2.59688]
[1723371353110,2.3285,2695.9,2695.0,2.5974]
[1723371353284,2.3285,2695.9,2695.5,2.59683]
[1723371353847,2.3285,2695.9,2695.7,2.59669]
[1723371354108,2.3285,2696.2,2695.7,2.5967]
[1723371354407,2.3285,2696.0,2695.3,2.59706]
[1723371354567,2.59668,2695.8,2695.1,2.59722]
[1723371354775,2.3285,2696.0,2695.3,2.59711]
[1723371355497,2.3285,2696.0,2695.7,2.59665]
[1723371355800,3.0,2696.3,2695.9,2.59653]
[1723371356010,2.3285,2696.2,2695.8,2.59662]
[1723371356420,2.3285,2696.2,2695.9,2.59653]
[1723371356628,2.3285,2696.2,2695.9,5.19301]
[1723371356804,2.3285,2696.2,2696.0,2.59643]
[1723371357730,5.59589,2696.6,2696.1,2.5963]
[1723371357731,2.3285,2696.5,2696.1,2.5963]
[1723371358018,2.888089,2696.5,2696.1,2.5963]
[1723371358825,2.888089,2696.5,2693.2,4.49357021]
[1723371358826,2.5963,2696.2,2695.5,2.59686]
[1723371359026,4.92484,2696.1,2695.5,2.59686]
[1723371359319,2.3285,2696.1,2695.6,2.59674]
[1723371359616,4.9249,2696.1,2695.3,2.59705]
[1723371359792,5.67702,2696.1,2695.5,2.59689]
[1723371360325,3.08062,2696.1,2695.5,2.59685]
[1723371360616,3.08062,2696.1,2695.0,5.03356]
[1723371360617,2.59654,2695.9,2695.3,2.59704]
[1723371360797,2.59664,2695.8,2695.3,2.59704]
[1723371360996,2.59664,2695.8,2695.1,2.59724]
[1723371361183,2.59681,2695.7,2695.1,2.59724]
[1723371361433,4.92538,2695.6,2695.0,2.59731]
[1723371361762,2.3285,2695.6,2695.2,2.5972]
[1723371361921,2.3285,2695.6,2695.4,2.59695]
[1723371362121,2.3285,2696.0,2695.5,2.59684]
[1723371362372,2.3285,2696.0,2695.6,2.59676]
[1723371362852,2.3285,2696.0,2695.7,2.59671]
[1723371363070,2.3285,2696.0,2695.8,2.59661]
[1723371363250,2.3285,2696.0,2695.7,2.59663]
[1723371363858,2.3285,2696.0,2695.8,5.19326]
[1723371364036,2.3696,2696.3,2695.9,2.59652]
[1723371364233,4.96575,2696.3,2695.7,2.59665]
[1723371364545,2.3696,2696.3,2695.8,2.59656]
[1723371364743,0.8784953,2696.2,2695.8,2.59656]
[1723371364948,0.8784953,2696.2,2695.8,5.19312]
[1723371365454,0.8784953,2696.2,2695.8,2.59656]
[1723371365644,0.8784953,2696.2,2695.9,2.59653]
[1723371365955,0.8784953,2696.2,2695.9,2.59646]
[1723371366822,2.3696,2696.3,2695.9,5.19293]
[1723371367872,2.3696,2696.3,2695.9,2.59646]
[1723371368969,2.3696,2695.8,2695.1,2.59725]
[1723371369288,2.3696,2695.8,2695.3,2.5971]
[1723371369471,3.125877,2695.8,2695.3,2.5971]
[1723371369674,3.125877,2695.8,2695.1,2.59725]
[1723371369675,5.722557,2695.8,2695.2,2.5972]
[1723371370368,3.125877,2695.8,2695.3,2.59702]
[1723371370952,2.3696,2695.8,2695.3,2.59702]
[1723371371183,2.3696,2696.1,2695.8,2.59657]
[1723371371765,2.3696,2696.4,2695.8,2.59657]
[1723371371964,2.3696,2696.4,2695.4,2.59698]
[1723371371965,2.59627,2696.2,2695.6,2.59674]
[1723371372379,2.3696,2696.1,2695.6,2.59674]
[1723371372706,2.3696,2696.1,2695.8,2.59662]
[1723371373306,4.96571,2696.4,2695.9,2.59653]
[1723371373484,2.3696,2696.4,2696.0,2.59642]
[1723371374907,2.3696,2696.4,2695.9,2.59653]
[1723371375066,0.23696,2696.3,2694.6,2.59777]
[1723371375266,0.23696,2696.3,2694.9,2.59744]
[1723371375267,2.3696,2695.5,2694.9,2.59744]
[1723371375854,5.3696,2695.5,2694.9,2.59744]
[1723371376888,7.96652,2695.5,2694.9,2.59744]
[1723371377521,2.59708,2695.4,2694.8,2.59755]
[1723371379312,2.59708,2695.4,2694.7,5.19527]
[1723371379516,2.59708,2695.4,2694.8,2.59751]
[1723371379726,2.59708,2695.4,2694.7,2.59762]
[1723371379914,5.3696,2695.5,2695.1,2.59728]
[1723371380255,2.59663,2695.8,2695.1,2.59723]
[1723371380534,3.0,2695.7,2695.2,2.59713]
[1723371380895,3.0,2695.7,2695.3,2.5971]
[1723371381236,5.3696,2695.9,2695.3,2.5971]
[1723371381619,7.96617,2695.9,2695.3,2.5971]
[1723371381793,7.96617,2695.9,2695.3,5.19414]
[1723371381999,5.3696,2695.9,2695.3,3.1652283]
[1723371382197,2.3696,2695.9,2695.4,2.59694]
[1723371382422,2.3696,2695.9,2695.3,2.59704]
[1723371382423,5.3696,2695.9,2695.3,2.59704]
[1723371383142,5.3696,2695.9,2695.3,5.19406]
[1723371383343,5.3696,2695.9,2695.4,2.597]
[1723371383708,5.3696,2695.9,2695.3,2.59702]
[1723371384066,7.96613,2695.9,2695.3,2.59702]
[1723371384772,5.3696,2695.9,2695.3,5.19407]
[1723371384972,5.3696,2695.9,2695.4,2.597]
[1723371385574,5.3696,2695.9,2694.9,2.59742]
[1723371385575,2.2658,2695.4,2694.9,2.59742]
[1723371385787,2.2658,2695.7,2695.1,2.5973]
[1723371385941,2.2658,2695.7,2695.4,2.59701]
[1723371386130,2.2658,2696.0,2695.5,2.59687]
[1723371386466,2.2658,2696.0,2695.1,2.59723]
[1723371386467,2.59665,2695.8,2695.1,2.59723]
[1723371386675,2.59662,2695.9,2695.1,2.59723]
[1723371386847,2.59673,2695.7,2695.1,2.95825984]
[1723371387027,2.59673,2695.7,2695.2,0.55]
[1723371387559,5.19352,2695.7,2695.2,0.55]
[1723371387760,2.59688,2695.6,2695.0,2.59735]
[1723371388076,2.59688,2695.6,2695.0,4.17926684]
[1723371388379,2.59673,2695.7,2695.1,2.5973]
[1723371388671,2.59673,2695.7,2695.1,2.59725]
[1723371389370,2.59691,2695.6,2695.0,1.58191684]
[1723371389525,2.59673,2695.7,2695.0,4.17925684]
[1723371389731,2.2658,2695.6,2695.1,2.59729]
[1723371390367,2.2658,2695.6,2695.1,3.06477848]
[1723371390939,2.2658,2695.6,2695.1,5.66201848]
[1723371391142,2.2658,2695.6,2695.1,5.66195848]
[1723371391458,2.2658,2695.6,2695.1,3.06471848]
[1723371392763,2.59707,2695.4,2694.8,2.59752]
[1723371393490,2.59693,2695.5,2694.9,5.19486]
[1723371393696,2.2658,2695.6,2695.1,2.59729]
[1723371393697,4.86268,2695.6,2695.1,2.59729]
[1723371393900,2.59701,2695.4,2694.9,2.59742]
[1723371394076,2.2658,2695.3,2694.5,4.85916]
[1723371394293,2.59732,2695.1,2694.5,5.19569]
[1723371394460,2.59732,2695.1,2694.6,0.519569]
[1723371394667,2.59732,2695.1,2694.6,3.117349]
[1723371395475,2.59732,2695.1,2694.6,0.519569]
[1723371395680,2.59732,2695.1,2694.6,3.117349]
[1723371396727,2.59732,2695.1,2694.6,2.59778]
[1723371397101,4.86294,2695.3,2694.7,2.59762]
[1723371398232,2.59721,2695.2,2694.7,2.59762]
[1723371400010,2.59721,2695.2,2694.5,2.59779]
[1723371400223,2.59721,2695.2,2694.6,2.59778]
[1723371400536,5.940497,2695.2,2694.6,2.59778]
[1723371400730,3.343217,2695.2,2694.6,2.59777]
[1723371401100,5.940507,2695.2,2694.6,2.59777]
[1723371401301,3.343217,2695.2,2694.6,2.59777]
[1723371402036,3.343217,2695.2,2694.3,2.59801]
[1723371402226,3.343217,2695.2,2694.4,0.55]
[1723371403036,2.5974,2695.0,2694.5,2.59782]
[1723371403210,3.343217,2695.2,2694.6,2.59778]
[1723371403634,5.940477,2695.2,2694.6,2.59778]
[1723371403847,3.343217,2695.2,2694.6,2.59778]
[1723371404144,5.940497,2695.2,2694.6,2.59778]
[1723371404294,3.343217,2695.2,2694.6,2.59778]
[1723371404498,5.940487,2695.2,2694.6,2.59778]
[1723371404994,3.343217,2695.2,2694.6,2.59778]
[1723371405440,5.940487,2695.2,2694.6,2.59778]
[1723371405634,2.59731,2695.1,2694.6,2.59778]
[1723371405842,3.343217,2695.2,2694.6,2.59778]
[1723371405997,3.343217,2695.2,2694.5,2.59782]
[1723371406194,0.5609017,2695.1,2694.5,2.59782]
[1723371406614,0.5609017,2695.1,2694.4,0.55]
[1723371406822,3.1582617,2695.1,2694.6,2.59776]
[1723371408312,2.2658,2695.3,2694.8,2.59757]
[1723371408511,2.2658,2695.3,2694.8,2.59753]
[1723371408724,2.59726,2695.2,2694.6,5.0066]
[1723371408942,3.083543,2695.2,2694.4,0.55]
[1723371409272,2.59726,2695.2,2694.6,2.59773]
[1723371410032,2.59726,2695.2,2694.7,2.59767]
[1723371410218,2.2658,2695.3,2694.8,2.59758]
[1723371410547,2.59704,2695.4,2694.9,2.59748]
[1723371410752,4.91477,2695.6,2694.9,2.59748]
[1723371410911,2.59713,2695.3,2694.8,2.59759]
[1723371411417,2.5971,2695.4,2694.9,2.59748]
[1723371411620,2.59723,2695.2,2694.7,2.59768]
[1723371411824,2.59723,2695.2,2694.6,2.59775]
[1723371412022,4.91502,2695.3,2694.7,2.59764]
[1723371412348,2.3179,2695.3,2694.9,2.59747]
[1723371412552,2.3179,2695.3,2694.3,6.227861]
[1723371412553,2.59731,2695.1,2694.3,1.220931]
[1723371412750,2.59745,2695.0,2694.4,5.19582]
[1723371412909,5.19469,2695.1,2694.4,2.5979]
[1723371413243,2.59731,2695.1,2694.5,2.59786]
[1723371413456,2.5974,2695.0,2694.5,2.59786]
[1723371413817,2.59731,2695.1,2694.5,2.59786]
[1723371414037,2.59731,2695.1,2694.6,2.59778]
[1723371414225,4.91505,2695.3,2694.6,2.59778]
[1723371414425,2.5974,2695.0,2694.4,5.19584]
[1723371414666,2.5974,2695.0,2694.4,6.0783971]
[1723371414862,2.3179,2695.3,2693.6,7.35]
[1723371414863,2.59803,2694.4,2693.6,7.35]
[1723371415145,4.91593,2694.4,2693.7,2.59858]
[1723371415357,4.91593,2694.4,2693.8,2.858358]
[1723371415714,4.91593,2694.4,2693.6,2.59867]
[1723371415715,4.91592,2694.4,2693.6,2.59867]
[1723371416054,4.91592,2694.4,2693.8,2.59855]
[1723371416260,2.3179,2694.4,2694.0,2.59835]
[1723371416551,5.59706,2695.4,2694.0,2.59835]
[1723371416552,2.3179,2694.9,2694.1,2.4089]
[1723371416910,3.0,2695.4,2694.0,0.51969]
[1723371416911,2.59785,2694.6,2694.0,5.19661]
[1723371417114,2.59785,2694.6,2693.6,2.4089]
[1723371417115,2.3179,2694.7,2694.2,2.59811]
[1723371417348,2.3179,2694.7,2694.2,5.19622]
[1723371417514,2.3179,2694.7,2694.1,2.4089]
[1723371417715,4.91531,2695.0,2694.4,2.59791]
[1723371418016,4.91531,2695.0,2694.2,5.74626]
[1723371418017,2.59752,2694.9,2694.2,5.74626]
[1723371418246,2.59752,2694.9,2694.3,2.59807]
[1723371418552,2.3179,2694.5,2693.8,2.59852]
[1723371418757,2.3179,2694.8,2693.9,2.4089]
[1723371419062,2.3179,2694.8,2694.3,2.59806]
[1723371420460,2.3179,2694.8,2694.4,2.59796]
[1723371420821,2.59744,2695.0,2694.4,2.59796]
[1723371421218,2.59744,2695.0,2694.5,2.59788]
[1723371421865,2.59744,2695.0,2694.3,2.59798]
[1723371422067,3.348698,2695.0,2694.4,2.59796]
[1723371422263,3.348698,2695.0,2694.5,2.59782]
[1723371422674,0.751258,2695.0,2694.5,5.19565]
[1723371423003,2.3179,2695.1,2694.5,2.59782]
[1723371423504,2.59745,2695.0,2694.4,2.59791]
[1723371424409,2.293,2694.9,2694.2,2.5981]
[1723371424610,5.19531,2694.8,2694.2,2.5981]
[1723371424767,2.293,2694.9,2694.0,2.59834]
[1723371424964,2.293,2694.5,2694.0,2.59834]
[1723371425165,4.89089,2694.5,2693.9,2.59838]
[1723371425596,4.89089,2694.5,2693.9,5.19679]
[1723371425799,4.89089,2694.5,2694.0,2.59834]
[1723371426220,2.59816,2694.3,2693.7,2.5986]
[1723371426399,2.59816,2694.3,2693.8,2.5985]
[1723371426607,2.293,2694.2,2693.5,0.64215048]
[1723371426784,2.293,2694.2,2693.6,2.59874]
[1723371426785,4.89122,2694.2,2693.6,2.59874]
[1723371427579,2.59829,2694.1,2693.6,2.59874]
[1723371427776,2.59829,2694.1,2693.5,0.64215048]
[1723371428085,2.59837,2694.0,2693.5,0.64215048]
[1723371428605,2.59846,2693.9,2693.5,0.64215048]
[1723371428791,2.293,2693.7,2693.5,0.64215048]
[1723371430094,7.4905,2693.6,2693.5,0.64215048]
[1723371430409,10.08925,2693.6,2693.5,0.64215048]
[1723371430787,4.89225,2693.1,2692.5,2.5998]
[1723371431714,4.89223,2693.1,2692.5,2.5998]
[1723371432080,2.293,2693.4,2692.7,2.59954]
[1723371432279,2.293,2693.4,2692.9,2.59941]
[1723371433181,2.293,2693.4,2692.9,5.19876]
[1723371433625,2.293,2693.1,2691.7,2.4498]
[1723371433819,2.59941,2693.0,2692.4,2.59982]
[1723371434024,5.19882,2693.0,2692.3,2.59994]
[1723371434225,0.749182,2693.0,2692.1,2.60019]
[1723371434398,2.293,2693.1,2691.0,2.60125]
[1723371434399,2.5998,2692.6,2692.0,2.60027]
[1723371434987,2.59981,2692.5,2691.9,2.6003]
[1723371435413,2.293,2692.4,2691.9,2.6003]
[1723371436019,2.293,2692.4,2691.9,5.20063]
[1723371436227,2.293,2692.4,2691.4,5.05064]
[1723371436228,2.60001,2692.3,2691.7,2.60049]
[1723371437119,2.6002,2692.1,2691.5,5.20144]
[1723371437531,2.6002,2692.1,2691.6,2.60068]
[1723371437702,2.60001,2692.3,2691.6,2.60068]
[1723371437897,3.112241,2692.3,2691.6,2.60068]
[1723371438286,0.512231,2692.3,2691.0,2.4498]
[1723371438522,0.512231,2692.3,2691.0,5.4498]
[1723371438729,2.60017,2692.2,2691.5,2.60069]
[1723371438934,2.60032,2692.0,2691.3,2.60093]
[1723371439092,4.89326,2692.1,2691.3,2.60091]
[1723371439290,2.60031,2692.0,2691.3,5.20181]
[1723371439487,2.60031,2692.0,2691.3,2.6009]
[1723371439691,2.293,2692.1,2691.5,2.60075]
[1723371439909,2.293,2692.1,2691.3,2.60092]
[1723371439910,0.489315,2692.0,2691.3,2.60091]
[1723371440112,2.293,2692.1,2691.1,2.60109]
[1723371440113,2.60055,2691.8,2691.1,2.60109]
[1723371440439,2.293,2691.7,2691.1,2.60109]
[1723371440609,2.293,2691.7,2691.2,2.60104]
[1723371440796,5.382995,2691.7,2691.0,7.35]
[1723371441233,2.60085,2691.5,2691.0,7.35]
[1723371441439,4.89385,2691.5,2691.0,9.95125]
[1723371441646,2.293,2692.3,2691.1,2.4498]
[1723371441946,2.293,2692.3,2692.0,2.60022]
[1723371442649,2.293,2692.3,2691.8,2.60043]
[1723371442650,2.293,2692.3,2691.8,2.60042]
[1723371442801,4.89301,2692.3,2691.8,2.55042]
[1723371443009,2.293,2692.3,2691.8,2.6004]
[1723371443227,2.4786,2692.7,2692.3,2.59994]
[1723371443603,2.4786,2692.7,2692.1,2.60011]
[1723371443808,2.59987,2692.5,2691.9,2.60034]
[1723371444010,2.59971,2692.6,2692.0,2.60028]
[1723371444436,2.59971,2692.6,2691.9,0.546096]
[1723371444604,2.59981,2692.5,2691.9,3.146456]
[1723371444806,2.4786,2692.7,2692.1,2.60011]
[1723371445006,2.4786,2692.7,2692.4,2.5999]
[1723371445213,2.4786,2692.7,2692.3,2.67420987]
[1723371445405,3.0,2692.9,2692.4,0.55]
[1723371446006,5.59948,2692.9,2692.4,0.55]
[1723371446207,6.667225,2692.9,2692.4,0.55]
[1723371446408,2.59955,2692.8,2692.4,0.55]
[1723371446667,4.067745,2692.9,2692.3,2.59994]
[1723371446854,3.0,2692.9,2692.4,2.59984]
[1723371447020,3.0,2692.9,2692.4,2.59989]
[1723371447223,3.0,2692.9,2692.1,2.60015]
[1723371447419,2.59962,2692.7,2692.2,0.55]
[1723371448733,0.54786,2692.8,2692.2,0.55]
[1723371449272,3.14744,2692.8,2692.2,0.55]
[1723371449437,2.59963,2692.7,2692.2,0.55]
[1723371449773,2.59963,2692.7,2692.2,3.15009]
[1723371450143,2.59945,2692.9,2692.3,5.19994]
[1723371450480,2.4786,2693.3,2692.4,2.2878]
[1723371450762,2.59877,2693.6,2693.1,2.59923]
[1723371450969,5.07727,2693.7,2693.1,5.19839]
[1723371451268,5.07727,2693.7,2693.1,2.59916]
[1723371452760,5.07727,2693.7,2693.2,2.59911]
[1723371452980,5.07727,2693.7,2693.3,0.0742568]
[1723371452981,2.4786,2693.7,2693.3,0.0742568]
[1723371453129,2.59834,2694.1,2693.5,2.59878]
[1723371453434,2.4786,2694.0,2693.3,5.8222168]
[1723371453765,3.716294,2694.0,2693.3,5.74796]
[1723371453949,3.716294,2694.0,2693.5,2.59884]
[1723371454636,3.716294,2694.0,2693.5,2.59878]
[1723371454965,3.716294,2694.0,2693.5,2.59877]
[1723371455128,2.4786,2694.0,2693.3,0.55]
[1723371455471,2.4786,2694.0,2693.5,2.59876]
[1723371455634,2.4786,2694.0,2693.6,2.59874]
[1723371456039,2.4786,2694.4,2693.9,2.59846]
[1723371456565,2.4786,2694.4,2693.9,2.59839]
[1723371457265,2.4786,2694.4,2694.0,2.59833]
[1723371458061,2.59816,2694.3,2693.5,2.59877]
[1723371458261,2.84602,2694.3,2693.6,0.55]
[1723371458453,2.59823,2694.2,2693.6,3.14868]
[1723371458625,3.130699,2694.2,2693.6,0.55]
[1723371458829,2.59827,2694.1,2693.6,0.55]
[1723371459062,0.532469,2694.2,2693.6,0.55]
[1723371459433,3.130699,2694.2,2693.6,3.14871]
[1723371460241,0.3378559,2694.1,2693.6,0.55]
[1723371460433,3.130699,2694.2,2693.6,0.55]
[1723371461764,2.59833,2694.1,2693.4,2.59885]
[1723371461963,2.59833,2694.1,2693.5,0.55]
[1723371462174,3.1712329,2694.1,2693.5,0.55]
[1723371462665,2.59837,2694.0,2693.5,0.55]
[1723371462876,2.59837,2694.0,2693.5,3.14883]
[1723371464873,0.5729029,2694.1,2693.5,3.14883]
[1723371465032,5.07664,2694.4,2693.9,2.59844]
[1723371465479,7.67469,2694.4,2693.7,5.19717]
[1723371465679,5.07664,2694.4,2693.8,2.59855]
[1723371465850,0.767469,2694.3,2693.8,2.59855]
[1723371467035,0.767469,2694.3,2693.7,2.59857]
[1723371468176,0.767469,2694.3,2693.5,3.14884]
[1723371468177,2.59828,2694.1,2693.5,3.14879]
[1723371468336,3.1826509,2694.2,2693.5,3.14879]
[1723371468540,0.5844109,2694.2,2693.5,3.14879]
[1723371468875,0.5844109,2694.2,2693.7,2.59859]
[1723371469749,0.31825509,2694.1,2693.5,0.55]
[1723371469962,5.19703,2693.9,2693.5,0.55]
[1723371470168,2.59851,2693.9,2693.4,7.35]
[1723371471182,2.59851,2693.9,2693.3,5.19796]
[1723371471369,2.59851,2693.9,2693.4,3.14892]
[1723371471571,3.353831,2693.9,2693.4,3.14892]
[1723371472094,3.353831,2693.9,2693.4,0.55]
[1723371472885,2.59856,2693.8,2693.4,0.55]
[1723371473588,0.755321,2693.9,2693.4,0.55]
[1723371473789,3.353811,2693.9,2693.4,0.55]
[1723371474081,2.59857,2693.8,2693.4,0.55]
[1723371474684,0.8308671,2693.8,2693.4,3.14893]
[1723371475259,0.8308671,2693.8,2693.4,0.55]
[1723371475450,0.8308671,2693.8,2693.3,3.14903]
[1723371475647,0.8308671,2693.8,2693.3,0.55]
[1723371475851,2.59863,2693.8,2693.3,0.55]
[1723371476050,2.59863,2693.8,2693.1,9.94919]
[1723371476244,2.3564,2694.0,2693.1,7.35]
[1723371476245,4.95526,2693.5,2693.1,7.35]
[1723371476545,4.95526,2693.5,2692.8,2.59947]
[1723371476546,4.9553,2693.5,2692.9,2.5994]
[1723371476749,5.710701,2693.5,2692.9,2.5994]
[1723371477171,2.59916,2693.2,2692.8,7.35]
[1723371477484,2.59916,2693.2,2692.6,2.59965]
[1723371477485,0.259916,2693.1,2692.6,2.59965]
[1723371477644,2.59916,2693.2,2692.7,2.5996]
[1723371477846,5.19801,2693.4,2692.7,2.5996]
[1723371478067,3.111801,2693.5,2693.1,2.59922]
[1723371478306,2.3564,2693.5,2693.1,2.59918]
[1723371478510,2.3564,2693.5,2693.0,2.59931]
[1723371478684,2.3564,2693.5,2693.1,3.14922]
[1723371478889,0.495522,2693.5,2693.1,3.14922]
[1723371479086,3.0,2693.7,2693.2,2.59913]
[1723371479716,3.0,2693.7,2693.3,2.59904]
[1723371479918,4.95501,2693.8,2693.1,3.14922]
[1723371479919,2.3564,2693.8,2693.4,2.59887]
[1723371480085,3.0,2693.9,2693.4,2.59887]
[1723371480426,3.73,2693.9,2693.5,2.59878]
[1723371481277,0.73,2693.9,2693.6,2.59873]
[1723371481473,0.73,2693.9,2693.1,10.4992]
[1723371481474,2.3564,2694.1,2693.2,2.59909]
[1723371481747,2.3564,2693.7,2693.1,7.9]
[1723371481885,2.3564,2694.0,2693.3,2.67323965]
[1723371482090,2.59847,2693.9,2693.4,0.55]
[1723371482290,0.795487,2693.8,2693.4,0.55]
[1723371482605,2.5987,2693.7,2693.1,9.94917]
[1723371482792,2.5987,2693.7,2693.1,12.54835]
[1723371483000,4.9504,2693.6,2693.1,7.35]
[1723371483317,0.49504,2693.5,2693.0,2.59931]
[1723371483515,2.3516,2693.6,2692.8,5.19895]
[1723371483682,2.59902,2693.4,2692.8,2.59944]
[1723371484179,2.3516,2693.6,2692.7,7.35]
[1723371484180,2.59907,2693.3,2692.7,7.35]
[1723371484574,2.59907,2693.3,2692.8,2.59952]
[1723371484890,2.59907,2693.3,2692.7,7.35]
[1723371484891,2.59907,2693.3,2692.7,9.94957]
[1723371485092,2.3516,2693.3,2692.7,7.35]
[1723371485321,2.3516,2693.3,2692.2,2.60006]
[1723371485322,4.95088,2693.1,2692.2,5.20009]
[1723371485508,2.59954,2692.8,2692.2,2.60003]